[Event "Early-Titled-Tuesday-Blitz-January-30-2024"]
[Site "Chess.com"]
[Date "2024.01.30"]
[Round "3"]
[White "invisible_s0ul"]
[Black "Flaccidmoves"]
[Result "0-1"]
[WhiteElo "2241"]
[BlackElo "2461"]
[TimeControl "180+1"]
[EndTime "8:30:32 PST"]
[Termination "Flaccidmoves won on time"]

1. e4 {[%clk 0:03:00.9]} 1... Nf6 {[%clk 0:02:58.9]} 2. e5 {[%clk 0:02:59.4]}
2... Nd5 {[%clk 0:02:59.6]} 3. c4 {[%clk 0:02:59.1]} 3... Nb6 {[%clk 0:03:00.2]}
4. d4 {[%clk 0:02:59.7]} 4... d6 {[%clk 0:03:00.7]} 5. exd6 {[%clk 0:02:57]}
5... exd6 {[%clk 0:03:01.6]} 6. Nc3 {[%clk 0:02:56.4]} 6... Be7 {[%clk
0:03:01.7]} 7. Bd3 {[%clk 0:02:56.6]} 7... O-O {[%clk 0:03:01.4]} 8. Qc2 {[%clk
0:02:55.5]} 8... g6 {[%clk 0:02:58.1]} 9. Nge2 {[%clk 0:02:50.5]} 9... Nc6
{[%clk 0:02:56.8]} 10. a3 {[%clk 0:02:39.9]} 10... Bf6 {[%clk 0:02:56.5]} 11.
Be3 {[%clk 0:02:33.6]} 11... d5 {[%clk 0:02:50.9]} 12. c5 {[%clk 0:02:29.8]}
12... Nc4 {[%clk 0:02:50.9]} 13. Bxc4 {[%clk 0:02:28.2]} 13... dxc4 {[%clk
0:02:51.8]} 14. Rd1 {[%clk 0:02:15.9]} 14... Bf5 {[%clk 0:02:51.1]} 15. Ne4
{[%clk 0:01:45.6]} 15... Bg7 {[%clk 0:02:49.9]} 16. N2g3 {[%clk 0:01:40.3]}
16... Bxe4 {[%clk 0:02:48]} 17. Qxe4 {[%clk 0:01:36.7]} 17... Re8 {[%clk
0:02:44.7]} 18. Qg4 {[%clk 0:01:21.8]} 18... Qd5 {[%clk 0:02:32.9]} 19. O-O
{[%clk 0:01:18.9]} 19... Rad8 {[%clk 0:02:29.8]} 20. Ne2 {[%clk 0:01:01.8]}
20... Qe4 {[%clk 0:01:31.4]} 21. Qxe4 {[%clk 0:00:41.9]} 21... Rxe4 {[%clk
0:01:32.3]} 22. Nc3 {[%clk 0:00:41.4]} 22... Ree8 {[%clk 0:01:05.9]} 23. d5
{[%clk 0:00:38.2]} 23... Ne5 {[%clk 0:01:02.4]} 24. Bd4 {[%clk 0:00:20.2]} 24...
Nd3 {[%clk 0:01:00.3]} 25. Bxg7 {[%clk 0:00:20.8]} 25... Kxg7 {[%clk 0:01:00.2]}
26. Rd2 {[%clk 0:00:20.8]} 26... Nxc5 {[%clk 0:00:59.9]} 27. Nb5 {[%clk
0:00:20.4]} 27... c6 {[%clk 0:00:58.1]} 28. Nxa7 {[%clk 0:00:05.8]} 28... Rxd5
{[%clk 0:00:55.6]} 29. Rxd5 {[%clk 0:00:05.4]} 29... cxd5 {[%clk 0:00:56.5]} 30.
Rd1 {[%clk 0:00:05.1]} 30... Nd3 {[%clk 0:00:55.5]} 31. Kf1 {[%clk 0:00:03.3]}
31... Nxb2 {[%clk 0:00:42]} 32. Rxd5 {[%clk 0:00:03.7]} 32... Nd3 {[%clk
0:00:42.7]} 33. g3 {[%clk 0:00:02.4]} 33... Re1+ {[%clk 0:00:42.4]} 34. Kg2
{[%clk 0:00:02.4]} 34... Re2 {[%clk 0:00:43]} 35. Nb5 {[%clk 0:00:02.2]} 35...
Rxf2+ {[%clk 0:00:40.8]} 36. Kh3 {[%clk 0:00:02.6]} 36... Rb2 {[%clk 0:00:40.2]}
37. Nc3 {[%clk 0:00:02.4]} 37... h5 {[%clk 0:00:33.3]} 38. Ne4 {[%clk
0:00:01.3]} 38... Re2 {[%clk 0:00:29.1]} 39. Nc3 {[%clk 0:00:01]} 39... Rb2
{[%clk 0:00:21.7]} 0-1

[Event "Early-Titled-Tuesday-Blitz-January-30-2024"]
[Site "Chess.com"]
[Date "2024.01.30"]
[Round "3"]
[White "andrzej"]
[Black "Casper"]
[Result "1-0"]
[WhiteElo "2425"]
[BlackElo "2531"]
[TimeControl "180+1"]
[EndTime "8:30:33 PST"]
[Termination "andrzej won by resignation"]

1. e4 {[%clk 0:03:00.9]} 1... g6 {[%clk 0:02:59.1]} 2. d4 {[%clk 0:03:00.8]}
2... Bg7 {[%clk 0:02:58.7]} 3. Nc3 {[%clk 0:03:01.4]} 3... d6 {[%clk 0:02:59.6]}
4. Be3 {[%clk 0:03:01.9]} 4... Nf6 {[%clk 0:02:59.6]} 5. f3 {[%clk 0:02:58.3]}
5... Nc6 {[%clk 0:03:00]} 6. Qd2 {[%clk 0:02:57.3]} 6... O-O {[%clk 0:03:00.6]}
7. O-O-O {[%clk 0:02:57.2]} 7... e5 {[%clk 0:03:01.3]} 8. d5 {[%clk 0:02:57.4]}
8... Nd4 {[%clk 0:03:01.9]} 9. Nge2 {[%clk 0:02:56.7]} 9... c5 {[%clk
0:03:00.3]} 10. dxc6 {[%clk 0:02:56.1]} 10... Nxc6 {[%clk 0:02:58.9]} 11. Qxd6
{[%clk 0:02:53.2]} 11... Be6 {[%clk 0:02:59.6]} 12. Qxd8 {[%clk 0:02:52.5]}
12... Rfxd8 {[%clk 0:03:00.5]} 13. Rxd8+ {[%clk 0:02:45.5]} 13... Rxd8 {[%clk
0:03:01.4]} 14. Bg5 {[%clk 0:02:45.6]} 14... Kf8 {[%clk 0:02:57.5]} 15. Nd5
{[%clk 0:02:31.2]} 15... Bxd5 {[%clk 0:02:55.6]} 16. exd5 {[%clk 0:02:31.5]}
16... Rxd5 {[%clk 0:02:56.3]} 17. Nc3 {[%clk 0:02:32]} 17... Rd7 {[%clk
0:02:52.2]} 18. Bb5 {[%clk 0:02:32.2]} 18... h6 {[%clk 0:02:50.1]} 19. Be3
{[%clk 0:02:25.5]} 19... Nd5 {[%clk 0:02:40.7]} 20. Bc5+ {[%clk 0:02:16.2]}
20... Ke8 {[%clk 0:02:39.2]} 21. Ne4 {[%clk 0:01:52.1]} 21... Nc7 {[%clk
0:02:24.9]} 22. Bxc6 {[%clk 0:01:27.3]} 22... bxc6 {[%clk 0:02:25.8]} 23. Bxa7
{[%clk 0:01:22.3]} 23... f5 {[%clk 0:02:21.9]} 24. Nc5 {[%clk 0:01:10.7]} 24...
Re7 {[%clk 0:02:09]} 25. Bb8 {[%clk 0:01:06.5]} 25... Nb5 {[%clk 0:01:44]} 26.
Re1 {[%clk 0:01:00.2]} 26... Kf7 {[%clk 0:01:17.3]} 27. a4 {[%clk 0:00:53.9]}
27... Nc7 {[%clk 0:01:14.4]} 28. a5 {[%clk 0:00:45.4]} 28... e4 {[%clk
0:00:50.6]} 29. fxe4 {[%clk 0:00:39]} 29... Bd4 {[%clk 0:00:51]} 30. Bxc7 {[%clk
0:00:32]} 30... Bxc5 {[%clk 0:00:44.4]} 31. Bb6 {[%clk 0:00:19.6]} 31... Bxb6
{[%clk 0:00:26.7]} 32. axb6 {[%clk 0:00:20.5]} 32... fxe4 {[%clk 0:00:27.4]} 33.
b7 {[%clk 0:00:19.5]} 33... Rxb7 {[%clk 0:00:26.5]} 34. Rxe4 {[%clk 0:00:20.1]}
34... Kf6 {[%clk 0:00:24.1]} 35. b4 {[%clk 0:00:20.4]} 35... h5 {[%clk
0:00:17.7]} 36. Kd2 {[%clk 0:00:18.5]} 36... Kf5 {[%clk 0:00:17.5]} 37. Rc4
{[%clk 0:00:18.5]} 37... Rb6 {[%clk 0:00:17.8]} 38. Ke3 {[%clk 0:00:17.9]} 38...
g5 {[%clk 0:00:17.9]} 39. Rc5+ {[%clk 0:00:18]} 39... Kf6 {[%clk 0:00:18]} 40.
Ke4 {[%clk 0:00:17.9]} 40... Ra6 {[%clk 0:00:18.7]} 41. c4 {[%clk 0:00:17.6]}
41... Rb6 {[%clk 0:00:18.2]} 42. b5 {[%clk 0:00:16.8]} 42... cxb5 {[%clk
0:00:19.1]} 43. cxb5 {[%clk 0:00:16.7]} 43... h4 {[%clk 0:00:17.8]} 44. Rc6+
{[%clk 0:00:16.3]} 44... Rxc6 {[%clk 0:00:18.2]} 45. bxc6 {[%clk 0:00:17.2]}
45... Ke6 {[%clk 0:00:19.1]} 46. h3 {[%clk 0:00:16.9]} 1-0

[Event "Early-Titled-Tuesday-Blitz-January-30-2024"]
[Site "Chess.com"]
[Date "2024.01.30"]
[Round "3"]
[White "kidagent"]
[Black "cristianserban1"]
[Result "0-1"]
[WhiteElo "2321"]
[BlackElo "2574"]
[TimeControl "180+1"]
[EndTime "8:30:35 PST"]
[Termination "cristianserban1 won by checkmate"]

1. c4 {[%clk 0:03:00.9]} 1... g6 {[%clk 0:03:00.9]} 2. g3 {[%clk 0:03:00.7]}
2... Bg7 {[%clk 0:03:01.8]} 3. Bg2 {[%clk 0:03:00.9]} 3... d6 {[%clk 0:03:02.4]}
4. Nf3 {[%clk 0:02:59.4]} 4... Nc6 {[%clk 0:03:01.1]} 5. O-O {[%clk 0:02:57.9]}
5... Bd7 {[%clk 0:03:01.5]} 6. Nc3 {[%clk 0:02:54.4]} 6... Qc8 {[%clk
0:03:01.7]} 7. Re1 {[%clk 0:02:48.5]} 7... Bh3 {[%clk 0:03:01.5]} 8. Bh1 {[%clk
0:02:48.4]} 8... e5 {[%clk 0:02:55.6]} 9. d3 {[%clk 0:02:42.7]} 9... h5 {[%clk
0:02:43.7]} 10. Ng5 {[%clk 0:02:34.7]} 10... Bg4 {[%clk 0:02:35.3]} 11. f3
{[%clk 0:02:27.1]} 11... Bd7 {[%clk 0:02:34.1]} 12. a3 {[%clk 0:02:15.2]} 12...
a5 {[%clk 0:02:34]} 13. Rb1 {[%clk 0:02:13.4]} 13... h4 {[%clk 0:02:27.1]} 14.
Be3 {[%clk 0:02:06.6]} 14... Nge7 {[%clk 0:01:59.7]} 15. b4 {[%clk 0:02:01.9]}
15... axb4 {[%clk 0:01:51.3]} 16. axb4 {[%clk 0:02:02.8]} 16... Bh6 {[%clk
0:01:51.3]} 17. f4 {[%clk 0:01:54.6]} 17... hxg3 {[%clk 0:01:48.7]} 18. hxg3
{[%clk 0:01:53.9]} 18... Nf5 {[%clk 0:01:31.2]} 19. Bf2 {[%clk 0:01:52.3]} 19...
Bxg5 {[%clk 0:01:27]} 20. fxg5 {[%clk 0:01:51.7]} 20... Ncd4 {[%clk 0:01:17.5]}
21. e3 {[%clk 0:01:41.8]} 21... Ne6 {[%clk 0:01:15.2]} 22. Ne4 {[%clk
0:01:37.2]} 22... Qd8 {[%clk 0:01:07.3]} 23. Qg4 {[%clk 0:01:33.3]} 23... Bc6
{[%clk 0:00:58.5]} 24. Nf6+ {[%clk 0:01:28.2]} 24... Kf8 {[%clk 0:00:51.8]} 25.
Bxc6 {[%clk 0:01:29.1]} 25... bxc6 {[%clk 0:00:52]} 26. Ra1 {[%clk 0:01:27.6]}
26... Kg7 {[%clk 0:00:42.6]} 27. e4 {[%clk 0:01:07.4]} 27... Nfd4 {[%clk
0:00:41.7]} 28. Bxd4 {[%clk 0:01:07.3]} 28... Nxd4 {[%clk 0:00:42.5]} 29. Rf1
{[%clk 0:00:52]} 29... Ne6 {[%clk 0:00:25.8]} 30. Rxa8 {[%clk 0:00:18]} 30...
Qxa8 {[%clk 0:00:26.7]} 31. Nd7 {[%clk 0:00:15.1]} 31... Qa2 {[%clk 0:00:21.1]}
32. Rxf7+ {[%clk 0:00:10.8]} 32... Kxf7 {[%clk 0:00:22]} 33. Qf3+ {[%clk
0:00:10.7]} 33... Ke7 {[%clk 0:00:17.2]} 34. Qf6+ {[%clk 0:00:08.2]} 34... Kxd7
{[%clk 0:00:17.7]} 35. Qxh8 {[%clk 0:00:08.3]} 35... Qb1+ {[%clk 0:00:15.2]} 36.
Kg2 {[%clk 0:00:07.5]} 36... Qc2+ {[%clk 0:00:09.3]} 37. Kh3 {[%clk 0:00:05.2]}
37... Nxg5+ {[%clk 0:00:09.7]} 38. Kg4 {[%clk 0:00:05.3]} 38... Nf7 {[%clk
0:00:10.2]} 39. Qf6 {[%clk 0:00:04.9]} 39... Qd1+ {[%clk 0:00:08.4]} 40. Kh4
{[%clk 0:00:03.7]} 40... Qh5# {[%clk 0:00:08.6]} 0-1

[Event "Early-Titled-Tuesday-Blitz-January-30-2024"]
[Site "Chess.com"]
[Date "2024.01.30"]
[Round "3"]
[White "AldokhinIvan"]
[Black "Cheer_Down"]
[Result "1-0"]
[WhiteElo "2637"]
[BlackElo "2464"]
[TimeControl "180+1"]
[EndTime "8:30:36 PST"]
[Termination "AldokhinIvan won by resignation"]

1. e4 {[%clk 0:02:59.8]} 1... c5 {[%clk 0:03:00]} 2. Nf3 {[%clk 0:02:57.6]} 2...
d6 {[%clk 0:03:00.1]} 3. d4 {[%clk 0:02:56.9]} 3... cxd4 {[%clk 0:03:00.3]} 4.
Nxd4 {[%clk 0:02:56.6]} 4... Nf6 {[%clk 0:03:00.4]} 5. Nc3 {[%clk 0:02:57.3]}
5... a6 {[%clk 0:03:00.8]} 6. Bc4 {[%clk 0:02:57.5]} 6... e6 {[%clk 0:02:57.3]}
7. Bb3 {[%clk 0:02:57]} 7... Nc6 {[%clk 0:02:57.4]} 8. Be3 {[%clk 0:02:56.4]}
8... Be7 {[%clk 0:02:53.4]} 9. Qe2 {[%clk 0:02:50.1]} 9... O-O {[%clk
0:02:36.8]} 10. O-O-O {[%clk 0:02:49.1]} 10... Nxd4 {[%clk 0:02:32.5]} 11. Rxd4
{[%clk 0:02:47.1]} 11... Qc7 {[%clk 0:02:11.7]} 12. g4 {[%clk 0:02:37.9]} 12...
b5 {[%clk 0:02:05.5]} 13. g5 {[%clk 0:02:36.1]} 13... Nd7 {[%clk 0:02:05.1]} 14.
h4 {[%clk 0:02:31.1]} 14... Nc5 {[%clk 0:01:48.4]} 15. h5 {[%clk 0:02:21]} 15...
Nxb3+ {[%clk 0:01:24]} 16. axb3 {[%clk 0:02:20]} 16... b4 {[%clk 0:01:18.9]} 17.
Rxb4 {[%clk 0:02:14.5]} 17... d5 {[%clk 0:01:17.7]} 18. Rd4 {[%clk 0:02:11]}
18... dxe4 {[%clk 0:01:01.6]} 19. Nxe4 {[%clk 0:02:05]} 19... Bb7 {[%clk
0:00:58.3]} 20. Rg1 {[%clk 0:02:04.9]} 20... Qe5 {[%clk 0:00:51.3]} 21. Qd3
{[%clk 0:01:35.2]} 21... Rfd8 {[%clk 0:00:46.1]} 22. Nf6+ {[%clk 0:01:14]} 22...
Bxf6 {[%clk 0:00:44.8]} 23. gxf6 {[%clk 0:01:13.1]} 23... Qxf6 {[%clk
0:00:44.8]} 24. h6 {[%clk 0:01:09.1]} 24... Rxd4 {[%clk 0:00:38.8]} 25. Qxd4
{[%clk 0:01:02.8]} 25... Qxd4 {[%clk 0:00:37.1]} 26. Bxd4 {[%clk 0:01:03.7]}
26... g6 {[%clk 0:00:35.3]} 27. Bf6 {[%clk 0:01:04]} 27... Kf8 {[%clk
0:00:32.5]} 28. Rd1 {[%clk 0:01:02.7]} 28... Ke8 {[%clk 0:00:32.7]} 29. c4
{[%clk 0:00:59.7]} 29... a5 {[%clk 0:00:29.9]} 30. Kc2 {[%clk 0:00:59.1]} 30...
Bc6 {[%clk 0:00:30]} 31. Rd6 {[%clk 0:00:57.4]} 31... Bd7 {[%clk 0:00:29]} 32.
Kc3 {[%clk 0:00:55.9]} 32... Ra7 {[%clk 0:00:21.9]} 33. f4 {[%clk 0:00:55.7]}
33... Ra8 {[%clk 0:00:21.2]} 34. b4 {[%clk 0:00:51.3]} 34... axb4+ {[%clk
0:00:20.6]} 35. Kxb4 {[%clk 0:00:52.2]} 35... Rb8+ {[%clk 0:00:21.2]} 36. Kc3
{[%clk 0:00:52.3]} 36... Ba4 {[%clk 0:00:19.6]} 37. b4 {[%clk 0:00:52.4]} 37...
Bd7 {[%clk 0:00:16]} 38. b5 {[%clk 0:00:52.6]} 38... Rb7 {[%clk 0:00:14.4]} 39.
Kb4 {[%clk 0:00:50.2]} 39... Rb8 {[%clk 0:00:14.1]} 40. Ra6 {[%clk 0:00:46.4]}
40... Bc8 {[%clk 0:00:12.9]} 41. Ra7 {[%clk 0:00:45.1]} 41... Bd7 {[%clk
0:00:12.9]} 42. Rc7 {[%clk 0:00:43.9]} 42... Rc8 {[%clk 0:00:11.5]} 43. Rxc8+
{[%clk 0:00:43]} 43... Bxc8 {[%clk 0:00:11.6]} 44. Kc5 {[%clk 0:00:41.7]} 44...
Kd7 {[%clk 0:00:11.4]} 45. Kb6 {[%clk 0:00:41.9]} 45... e5 {[%clk 0:00:09.3]}
46. Bxe5 {[%clk 0:00:39]} 1-0

[Event "Early-Titled-Tuesday-Blitz-January-30-2024"]
[Site "Chess.com"]
[Date "2024.01.30"]
[Round "3"]
[White "TreinadorBR"]
[Black "IMRosen"]
[Result "0-1"]
[WhiteElo "2319"]
[BlackElo "2719"]
[TimeControl "180+1"]
[EndTime "8:30:36 PST"]
[Termination "IMRosen won on time"]

1. e4 {[%clk 0:03:00.9]} 1... e5 {[%clk 0:02:53.4]} 2. Nf3 {[%clk 0:03:00.8]}
2... Nf6 {[%clk 0:02:53.1]} 3. Bc4 {[%clk 0:02:59.5]} 3... Bc5 {[%clk
0:02:51.1]} 4. O-O {[%clk 0:02:49.1]} 4... Nc6 {[%clk 0:02:48.6]} 5. b4 {[%clk
0:02:46.3]} 5... Bxb4 {[%clk 0:02:35.5]} 6. c3 {[%clk 0:02:46.3]} 6... Be7
{[%clk 0:02:14.9]} 7. d4 {[%clk 0:02:44.1]} 7... Nxe4 {[%clk 0:02:05.4]} 8. Bd5
{[%clk 0:02:30.2]} 8... Nf6 {[%clk 0:01:59.1]} 9. Bxc6 {[%clk 0:02:22.5]} 9...
dxc6 {[%clk 0:01:58.3]} 10. Nxe5 {[%clk 0:02:23]} 10... O-O {[%clk 0:01:53.7]}
11. Nd2 {[%clk 0:02:07]} 11... Be6 {[%clk 0:01:51.4]} 12. Re1 {[%clk 0:02:02.8]}
12... c5 {[%clk 0:01:51.6]} 13. Ndf3 {[%clk 0:02:01.9]} 13... c6 {[%clk
0:01:35.9]} 14. Ng5 {[%clk 0:01:54.6]} 14... cxd4 {[%clk 0:00:54.8]} 15. cxd4
{[%clk 0:01:55.5]} 15... Bd5 {[%clk 0:00:53]} 16. Re3 {[%clk 0:01:38.6]} 16...
h6 {[%clk 0:00:47.7]} 17. Rh3 {[%clk 0:01:33.1]} 17... Qb6 {[%clk 0:00:24.7]}
18. Be3 {[%clk 0:01:23.7]} 18... Rad8 {[%clk 0:00:24.3]} 19. Rb1 {[%clk
0:01:20.3]} 19... Qc7 {[%clk 0:00:24.4]} 20. Ngf3 {[%clk 0:00:56.7]} 20... Rfe8
{[%clk 0:00:22.3]} 21. Nh4 {[%clk 0:00:52]} 21... Be6 {[%clk 0:00:19.8]} 22. Rg3
{[%clk 0:00:43.3]} 22... Ne4 {[%clk 0:00:17.6]} 23. Qh5 {[%clk 0:00:10]} 23...
Nxg3 {[%clk 0:00:17.1]} 24. fxg3 {[%clk 0:00:08.6]} 24... Bxh4 {[%clk
0:00:12.2]} 25. gxh4 {[%clk 0:00:06.4]} 25... Qe7 {[%clk 0:00:07.6]} 26. Rf1
{[%clk 0:00:05.5]} 26... Kh7 {[%clk 0:00:04.2]} 27. h3 {[%clk 0:00:04.8]} 27...
Rd5 {[%clk 0:00:04.8]} 28. Qf3 {[%clk 0:00:04.7]} 28... f6 {[%clk 0:00:04.7]}
29. Nd3 {[%clk 0:00:03.2]} 29... Bf7 {[%clk 0:00:04.2]} 30. Bf4 {[%clk
0:00:03.2]} 30... Qe4 {[%clk 0:00:04.2]} 31. Qg3 {[%clk 0:00:02.5]} 31... Rxd4
{[%clk 0:00:04.4]} 0-1

[Event "Early-Titled-Tuesday-Blitz-January-30-2024"]
[Site "Chess.com"]
[Date "2024.01.30"]
[Round "3"]
[White "OhanyanEminChess"]
[Black "nihalsarin"]
[Result "1-0"]
[WhiteElo "2829"]
[BlackElo "3166"]
[TimeControl "180+1"]
[EndTime "8:30:37 PST"]
[Termination "OhanyanEminChess won on time"]

1. e4 {[%clk 0:03:00.9]} 1... c5 {[%clk 0:02:59.8]} 2. Nf3 {[%clk 0:03:00.8]}
2... g6 {[%clk 0:02:59.4]} 3. d4 {[%clk 0:03:00.8]} 3... cxd4 {[%clk 0:03:00.3]}
4. Nxd4 {[%clk 0:03:01.7]} 4... Nf6 {[%clk 0:02:46]} 5. Nc3 {[%clk 0:02:56.6]}
5... Nc6 {[%clk 0:02:45.6]} 6. Nxc6 {[%clk 0:02:56.3]} 6... bxc6 {[%clk
0:02:46.5]} 7. e5 {[%clk 0:02:56.4]} 7... Ng8 {[%clk 0:02:46.3]} 8. Qf3 {[%clk
0:02:55.3]} 8... Qa5 {[%clk 0:02:38.2]} 9. Bf4 {[%clk 0:02:20.5]} 9... Bg7
{[%clk 0:01:57.9]} 10. Bc4 {[%clk 0:02:20.4]} 10... Nh6 {[%clk 0:01:25.5]} 11.
Bxh6 {[%clk 0:00:39.3]} 11... Bxh6 {[%clk 0:01:26.4]} 12. Bxf7+ {[%clk
0:00:39.9]} 12... Kd8 {[%clk 0:01:26.9]} 13. e6 {[%clk 0:00:39.5]} 13... Ba6
{[%clk 0:00:57.7]} 14. Rd1 {[%clk 0:00:35.8]} 14... d5 {[%clk 0:00:21.5]} 15. a3
{[%clk 0:00:33.6]} 15... Kc7 {[%clk 0:00:17.1]} 16. b4 {[%clk 0:00:31.5]} 16...
Qb6 {[%clk 0:00:17.8]} 17. b5 {[%clk 0:00:10.7]} 17... Bxb5 {[%clk 0:00:17.5]}
18. Rb1 {[%clk 0:00:11.5]} 18... Qc5 {[%clk 0:00:03.4]} 19. Rxb5 {[%clk
0:00:05.1]} 19... cxb5 {[%clk 0:00:04.3]} 20. Nxd5+ {[%clk 0:00:05.6]} 20... Kd6
{[%clk 0:00:04.7]} 21. O-O {[%clk 0:00:05.8]} 21... Qxd5 {[%clk 0:00:03.3]} 22.
Rd1 {[%clk 0:00:06.5]} 22... Bd2 {[%clk 0:00:03.2]} 23. Qe2 {[%clk 0:00:03.3]}
23... Kc6 {[%clk 0:00:02.7]} 24. Rxd2 {[%clk 0:00:04]} 24... Qc5 {[%clk
0:00:03.1]} 25. Qe4+ {[%clk 0:00:02.4]} 25... Kb6 {[%clk 0:00:03.9]} 26. Rd5
{[%clk 0:00:02.5]} 26... Qc4 {[%clk 0:00:01.5]} 27. Qe3+ {[%clk 0:00:02.9]}
27... Ka6 {[%clk 0:00:01.9]} 28. Rc5 {[%clk 0:00:02.7]} 28... Qa2 {[%clk
0:00:01.8]} 29. h4 {[%clk 0:00:02.6]} 29... Rhc8 {[%clk 0:00:02.4]} 30. Qe5
{[%clk 0:00:02.3]} 30... Rxc5 {[%clk 0:00:02.4]} 31. Qxc5 {[%clk 0:00:03.2]}
31... Qb1+ {[%clk 0:00:02.2]} 32. Kh2 {[%clk 0:00:03.4]} 32... Qd1 {[%clk
0:00:02.2]} 33. Qxe7 {[%clk 0:00:03.9]} 1-0

[Event "Early-Titled-Tuesday-Blitz-January-30-2024"]
[Site "Chess.com"]
[Date "2024.01.30"]
[Round "3"]
[White "Quattroporte300"]
[Black "LuisFSiles"]
[Result "0-1"]
[WhiteElo "2421"]
[BlackElo "2234"]
[TimeControl "180+1"]
[EndTime "8:30:37 PST"]
[Termination "LuisFSiles won on time"]

1. e4 {[%clk 0:03:00.9]} 1... c5 {[%clk 0:02:58.4]} 2. c3 {[%clk 0:02:59.7]}
2... d5 {[%clk 0:02:57.9]} 3. exd5 {[%clk 0:03:00.3]} 3... Nf6 {[%clk
0:02:58.2]} 4. Nf3 {[%clk 0:02:59]} 4... Nxd5 {[%clk 0:02:56.9]} 5. d4 {[%clk
0:02:58.9]} 5... cxd4 {[%clk 0:02:57]} 6. cxd4 {[%clk 0:02:58.8]} 6... Nc6
{[%clk 0:02:55.6]} 7. Nc3 {[%clk 0:02:57.8]} 7... g6 {[%clk 0:02:52.2]} 8. Bc4
{[%clk 0:02:57.3]} 8... Nxc3 {[%clk 0:02:51.9]} 9. bxc3 {[%clk 0:02:56.9]} 9...
Bg7 {[%clk 0:02:51.2]} 10. O-O {[%clk 0:02:56.2]} 10... O-O {[%clk 0:02:50.5]}
11. Bf4 {[%clk 0:02:49.8]} 11... Na5 {[%clk 0:02:44.8]} 12. Bd3 {[%clk
0:02:46.4]} 12... Be6 {[%clk 0:02:44.2]} 13. Qa4 {[%clk 0:02:38.4]} 13... Rc8
{[%clk 0:02:31.8]} 14. Rfc1 {[%clk 0:02:28.4]} 14... Bc4 {[%clk 0:02:28.8]} 15.
Qd1 {[%clk 0:02:21.3]} 15... Bxd3 {[%clk 0:02:26.2]} 16. Qxd3 {[%clk 0:02:21.3]}
16... Qd5 {[%clk 0:02:23.4]} 17. Rc2 {[%clk 0:02:03.8]} 17... Nc4 {[%clk
0:02:18.5]} 18. Re1 {[%clk 0:02:00.6]} 18... e6 {[%clk 0:02:14.5]} 19. Nd2
{[%clk 0:01:54.9]} 19... Rc6 {[%clk 0:02:01.7]} 20. Nxc4 {[%clk 0:01:51.2]}
20... Qxc4 {[%clk 0:02:00.3]} 21. Rd1 {[%clk 0:01:24.6]} 21... Qxd3 {[%clk
0:01:51.3]} 22. Rxd3 {[%clk 0:01:24.2]} 22... Rfc8 {[%clk 0:01:48.4]} 23. Bd2
{[%clk 0:01:16.5]} 23... Rc4 {[%clk 0:01:46.3]} 24. Rb2 {[%clk 0:00:57.4]} 24...
b6 {[%clk 0:01:46.1]} 25. Kf1 {[%clk 0:00:53.8]} 25... h5 {[%clk 0:01:29]} 26.
Ke2 {[%clk 0:00:52.7]} 26... Ra4 {[%clk 0:01:19.1]} 27. Re3 {[%clk 0:00:40.8]}
27... Ra3 {[%clk 0:01:13.9]} 28. Kd3 {[%clk 0:00:37.6]} 28... Bh6 {[%clk
0:01:10.9]} 29. Rf3 {[%clk 0:00:27.4]} 29... Bxd2 {[%clk 0:01:10]} 30. Kxd2
{[%clk 0:00:27.7]} 30... Rc4 {[%clk 0:01:10.1]} 31. Rd3 {[%clk 0:00:26.9]} 31...
Rca4 {[%clk 0:01:09.9]} 32. c4 {[%clk 0:00:20]} 32... Rxa2 {[%clk 0:01:06.7]}
33. Rxa2 {[%clk 0:00:20.7]} 33... Rxa2+ {[%clk 0:01:06.7]} 34. Ke3 {[%clk
0:00:19.9]} 34... Rc2 {[%clk 0:01:06.6]} 35. Ra3 {[%clk 0:00:18.3]} 35... a5
{[%clk 0:00:50.1]} 36. c5 {[%clk 0:00:18.9]} 36... bxc5 {[%clk 0:00:50.4]} 37.
Rxa5 {[%clk 0:00:19.6]} 37... cxd4+ {[%clk 0:00:50.4]} 38. Kf3 {[%clk
0:00:05.6]} 38... Kg7 {[%clk 0:00:48.1]} 39. h4 {[%clk 0:00:05.4]} 39... Kf6
{[%clk 0:00:46.6]} 40. g3 {[%clk 0:00:06]} 40... e5 {[%clk 0:00:44.9]} 41. Rd5
{[%clk 0:00:06]} 41... Kf5 {[%clk 0:00:42.6]} 42. Ra5 {[%clk 0:00:02.8]} 42...
f6 {[%clk 0:00:42.6]} 43. Rb5 {[%clk 0:00:02.8]} 43... g5 {[%clk 0:00:36.9]} 44.
hxg5 {[%clk 0:00:02.4]} 44... fxg5 {[%clk 0:00:37.1]} 45. Ra5 {[%clk 0:00:03]}
45... h4 {[%clk 0:00:36.5]} 46. gxh4 {[%clk 0:00:03.2]} 46... gxh4 {[%clk
0:00:36.8]} 47. Ra8 {[%clk 0:00:03.8]} 47... Rc3+ {[%clk 0:00:36.3]} 48. Kg2
{[%clk 0:00:04.3]} 48... h3+ {[%clk 0:00:36]} 49. Kh2 {[%clk 0:00:03.9]} 49...
Ke4 {[%clk 0:00:35.2]} 50. Rf8 {[%clk 0:00:02.6]} 50... Rf3 {[%clk 0:00:34.8]}
0-1